Cogmind - Beta 16.1 @@@ ROGUE MODE // 2026.04.29 @ 14:30:06 Player: Back to the Scrapyard Result: Destroyed by 3V-RD9(R) with Subdweller Laser Performance ------------- Evolutions (0) 0 Regions Visited (3) 600 Robots Destroyed (17) 85 Value Destroyed (424) 424 Prototype IDs (0) 0 Alien Tech Used (0) 0 Bonus (0) 0 TOTAL SCORE: 1109 Bonus ------- None Cogmind --------- Core Integrity 0/250 Matter 292/300 Energy 54/100 System Corruption 2% Temperature Cool (6) Movement Walking (120) Location -10/Subcaves Parts ------- > --- POWER (1) -------- (None) > --- PROPULSION (2) --- Light Treads Aluminum Leg > --- UTILITY (2) ------ Disposable Heat Sink Small Storage Unit > --- WEAPON (2) ------- Subdweller Laser > --- INVENTORY (8) ---- Ion Engine Aluminum Leg Subdweller Monowheel Heavy Assault Rifle Battle Rifle Battle Rifle Subdweller Machine Gun Scrap Shield Fragment (47) Peak State ------------ > --- POWER ------------ Subdweller Power Source > --- PROPULSION ------- Light Treads Aluminum Leg > --- UTILITY ---------- Disposable Heat Sink Small Storage Unit > --- WEAPON ----------- Subdweller Laser Heavy Assault Rifle > --- INVENTORY -------- Ion Engine Aluminum Leg Subdweller Monowheel Medium Laser Heavy Assault Rifle Heavy Assault Rifle Scrap Shield Fragment Scrap Shield Fragment [Rating: 12] Favorites ----------- Power Ion Engine Engine Ion Engine Propulsion Light Treads Treads Light Treads Leg Aluminum Leg Utility Small Storage Unit Device Disposable Heat Sink Storage Small Storage Unit Weapon Subdweller Laser Energy Gun Subdweller Laser Ballistic Gun Heavy Assault Rifle Build | -11 -10 -10 -10 ------- Run | Yrd Mat Min Sub Slots Evolved . | . . . . Power . | . . . . Propulsion . | . . . . Utility . | . . . . Weapon . | . . . . Parts Attached 20 | 6 3 2 9 Power 3 | . 1 . 2 Engine 3 | . 1 . 2 Core . | . . . . Reactor . | . . . . Propulsion 4 | 2 2 . . Treads 2 | . 2 . . Leg 2 | 2 . . . Wheel . | . . . . Hover . | . . . . Flight . | . . . . Utility 4 | 2 . . 2 Device 3 | 1 . . 2 Storage 1 | 1 . . . Processor . | . . . . Hackware . | . . . . Protection . | . . . . Artifact . | . . . . Weapon 9 | 2 . 2 5 Energy Gun 4 | 2 . . 2 Energy Cannon . | . . . . Ballistic Gun 5 | . . 2 3 Ballistic Cannon . | . . . . Launcher . | . . . . Special Weapon . | . . . . Impact Weapon . | . . . . Slashing Weapon . | . . . . Piercing Weapon . | . . . . Special Melee Weapon . | . . . . Unidentified Prototypes . | . . . . Parts Lost 6 | . . . 6 Power 2 | . . . 2 Propulsion 1 | . . . 1 Utility 1 | . . . 1 Weapon 2 | . . . 2 Highest Loss Streak 2 | . . . 2 To Critical Strikes 2 | . . . 2 Average Backups 6 | 4 5 8 6 Power . | 1 1 1 . Propulsion 1 | 1 2 2 1 Utility . | . . . . Weapon 3 | 1 2 5 4 Tool/Special . | . . . . Unused Backups 6 | . . . 6 Power . | . . . . Propulsion 2 | . . . 2 Utility . | . . . . Weapon 4 | . . . 4 Tool/Special . | . . . . Average Slot Usage (%) 96 | . 100 100 96 Engine 12 | . 14 14 11 Treads 17 | . 7 28 16 Leg 10 | . 20 . 10 Device 13 | . 14 14 13 Storage 14 | . 14 14 14 Energy Gun 15 | . 28 . 15 Ballistic Gun 12 | . . 27 12 Peak Build Rating 12 | 6 8 10 12 Average Rating 10 | 4 7 9 11 On Entrance 6 | . 6 8 10 Avg Prop Armor Cover (%) 14 | . . . 14 Naked Turns . | . . . . Heaviest Build 19 | 10 15 17 19 Greatest Support 40 | 20 40 40 40 Greatest Overweight (x) 4 | . . . 4 Average Overweight (x) . | . . . . Largest Inventory Capacity 8 | 8 8 8 8 Average Capacity 7 | 7 8 8 8 Most Carried 8 | 6 8 8 8 Average Carried 7 | 4 5 8 7 Final Capacity 8 | 8 8 8 8 Final Carried 8 | 5 8 8 8 Class Distribution -------------------- 63% | Mutant 36% | Scavenger-Mutant Dominant Class ---------------- Mutant | -10/Materials Mutant | -10/Mines Mutant | -10/Subcaves Resources | -11 -10 -10 -10 ----------- Run | Yrd Mat Min Sub Matter Collected 749 | 257 32 36 424 Remotely . | . . . . Salvage Created 624 | 168 48 . 408 Parts 41 | 14 6 . 21 Haulers Intercepted . | . . . . Recyclers Shooed . | . . . . Parts Field Recycled . | . . . . Retrieved Matter . | . . . . Parts Self-Destructed 14 | . . . 14 Prevented . | . . . . Parts Restored . | . . . . Kills | -11 -10 -10 -10 ------- Run | Yrd Mat Min Sub Combat Hostiles Destroyed 12 | . 3 . 9 Guns 12 | . 3 . 9 Classes Destroyed 4 | 2 1 . 1 Tunneler 4 | 4 . . . Recycler 1 | 1 . . . Swarmer 3 | . 3 . . Subdweller 9 | . . . 9 Best Kill Streak 5 | 5 3 . 2 Combat Bots Only 3 | . 3 . 2 Max Kills in Single Turn 1 | 1 1 . 1 Gunslinging . | . . . . Exploded . | . . . . Melee . | . . . . Uniques/NPCs Destroyed . | . . . . Combat | -11 -10 -10 -10 -------- Run | Yrd Mat Min Sub Hostile Shots Fired 99 | . 14 . 85 Missed 29 | . 2 . 27 Hits 70 | . 12 . 58 Projectile 70 | . 12 . 58 Critical Strikes 2 | . . . 2 Damage Taken 1368 | 26 96 . 1246 Core 270 | . 23 . 247 Absorbed by Shields . | . . . . Core Remaining (%) 100 | 100 . . . Volleys Fired 92 | 7 5 . 80 Largest 2 | 2 2 . 2 Hottest 120 | 90 90 . 120 Shots Fired 152 | 14 10 . 128 Gun 152 | 14 10 . 128 Cannon . | . . . . Launcher . | . . . . Special . | . . . . Kinetic 84 | . . . 84 Thermal 56 | 7 5 . 44 Explosive . | . . . . Electromagnetic 12 | 7 5 . . Robot Hit Streak 23 | 5 3 . 23 Robot Miss Streak 3 | 2 3 . 2 Penetration Max . | . . . . Secondary Targets 1 | . . . 1 Max Gunslinging Chain 1 | . . . 1 Shots Hit Robots 97 | 9 6 . 82 Core Hits 24 | 5 3 . 16 Critical Kills . | . . . . Critical Parts Destroyed 1 | . . . 1 Critical Strikes 1 | . . . 1 Destroy 1 | . . . 1 Melee Attacks . | . . . . Impact . | . . . . Slashing . | . . . . Piercing . | . . . . Sneak Attacks . | . . . . Combat Hostiles . | . . . . Follow-up Attacks . | . . . . Damage Inflicted 1213 | 144 94 . 975 Guns 1181 | 112 94 . 975 Cannons . | . . . . Explosions 32 | 32 . . . Melee . | . . . . Ramming . | . . . . Kinetic 642 | . . . 642 Thermal 476 | 82 61 . 333 Explosive . | . . . . Electromagnetic 95 | 62 33 . . Impact . | . . . . Slashing . | . . . . Piercing . | . . . . Highest Corruption 2 | . 2 2 2 Average Corruption 2 | . 2 2 2 Corruption Purged . | . . . . Corruption Blocked . | . . . . Effects 50 | . . 4 46 Message Errors 14 | . . . 14 Matter Fused 18 | . . 4 14 Heat Flow Errors 4 | . . . 4 Energy Discharges 6 | . . . 6 Parts Rejected 1 | . . . 1 Data Loss (minor) 4 | . . . 4 Data Loss (major) 1 | . . . 1 Misfires 2 | . . . 2 Overload Shots . | . . . . Overflow Damage . | . . . . Projectiles . | . . . . Explosions . | . . . . Melee . | . . . . Knockbacks . | . . . . Impact . | . . . . Kinetic . | . . . . Secondary . | . . . . Self-Inflicted Damage 27 | 27 . . . Shots 1 | 1 . . . Rammed . | . . . . Targets Rammed . | . . . . Kicked . | . . . . Crushed . | . . . . Highest Temperature 188 | 42 150 . 188 Average Temperature 50 | 15 75 . 58 Received Heat Transfer 246 | . . . 246 Siege Activations . | . . . . Martial Activations . | . . . . Shielding Activations . | . . . . Robots Disrupted . | . . . . Combat Hostiles . | . . . . Robots Corrupted . | . . . . Combat Hostiles . | . . . . Parts Fried . | . . . . Impact Corruptions . | . . . . Robots Melted . | . . . . Combat Hostiles . | . . . . Parts Melted 1 | . . . 1 Heat Transferred 733 | 148 185 . 400 Parts Sabotaged . | . . . . Parts Stolen . | . . . . Parts Stripped . | . . . . Power Chain Reactions 1 | 1 . . . Alert | -11 -10 -10 -10 ------- Run | Yrd Mat Min Sub Maximum Alert Level . | . . . . Low Security (%) 100 | 100 100 100 . Level 1 . | . . . . Level 2 . | . . . . Level 3 . | . . . . Level 4 . | . . . . Level 5 . | . . . . High Security . | . . . . Max Security . | . . . . Peak Influence 70 | 10 70 15 . Initial 15 | . . 15 . Average 7 | 1 27 2 . Influence Increases 140 | 25 70 15 30 Destroy 0b10 Robot/C 60 | . 60 . . Destroy 0b10 Robot/NC 25 | 25 . . . Destroy Leader 10 | . 10 . . Lose Combat Pursuer 45 | . . 15 30 Influence Decreases 138 | 25 30 55 28 Entered New Map 25 | . . 25 . Time Decay 103 | 25 30 30 18 Lost Part 10 | . . . 10 Squads Dispatched . | . . . . Investigation . | . . . . Extermination . | . . . . Reinforcement . | . . . . Assault . | . . . . Garrison . | . . . . Intercept . | . . . . Searches Triggered . | . . . . Construction Impeded . | . . . . Haulers Reinforced . | . . . . Active Scanning Responses . | . . . . Cargo Convoy Interrupts . | . . . . Stealth | -11 -10 -10 -10 --------- Run | Yrd Mat Min Sub Distress Signals . | . . . . Communications Jammed . | . . . . Distress Signals . | . . . . Times Spotted 18 | . 5 1 12 Peak Tracking Total 4 | . 4 1 2 Tactical Retreats 2 | . . 1 1 Traps | -11 -10 -10 -10 ------- Run | Yrd Mat Min Sub Traps Triggered 2 | . 1 . 1 Indirectly . | . . . . Trap Hack Attempts . | . . . . Triggered . | . . . . Disarmed . | . . . . Reprogrammed . | . . . . Reused . | . . . . Traps Extracted . | . . . . Installed . | . . . . Triggered . | . . . . Machines | -11 -10 -10 -10 ---------- Run | Yrd Mat Min Sub Machines Disabled . | . . . . Max in Single Turn . | . . . . Machines Repaired . | . . . . Machines Dismantled . | . . . . Machines Sabotaged . | . . . . Overloaded Fab Kills . | . . . . Hacking | -11 -10 -10 -10 --------- Run | Yrd Mat Min Sub Machines Accessed 3 | . . . 3 Terminals . | . . . . Fabricators . | . . . . Repair Stations . | . . . . Recycling Units . | . . . . Scanalyzers . | . . . . Garrison Access . | . . . . Total Hacks 7 | . . . 7 Successful 7 | . . . 7 Failed . | . . . . Catastrophic . | . . . . Database Lockouts . | . . . . Manual . | . . . . Terminals . | . . . . Fabricators . | . . . . Repair Stations . | . . . . Recycling Units . | . . . . Scanalyzers . | . . . . Garrison Access . | . . . . Terminal Hacks 7 | . . . 7 Record 5 | . . . 5 Open Door 1 | . . . 1 Release Object 1 | . . . 1 Fabricator Hacks . | . . . . Repair Station Hacks . | . . . . Recycling Unit Hacks . | . . . . Scanalyzer . | . . . . Garrison Access Hacks . | . . . . Unauthorized Hacks . | . . . . Terminals . | . . . . Fabricators . | . . . . Repair Stations . | . . . . Recycling Units . | . . . . Scanalyzers . | . . . . Garrison Access . | . . . . Data Cores Recovered . | . . . . Used . | . . . . Hacking Detections . | . . . . Full Trace Events . | . . . . Feedback Events . | . . . . Feedback Blocked . | . . . . Robot Schematics Acquired . | . . . . Robots Built . | . . . . Authchips . | . . . . Time . | . . . . Total Robot Build Rating . | . . . . Part Schematics Acquired . | . . . . Parts Built . | . . . . Authchips . | . . . . Time . | . . . . Total Part Build Rating . | . . . . Part Studies Acquired . | . . . . Parts Repaired . | . . . . Time . | . . . . Parts Recycled . | . . . . Recycled Matter . | . . . . Retrieved Matter . | . . . . Retrieved Components . | . . . . Parts Scanalyzed . | . . . . Part Schematics Acquired . | . . . . Parts Damaged . | . . . . Bothacking | -11 -10 -10 -10 ------------ Run | Yrd Mat Min Sub Used RIF Installer . | . . . . Robots Hacked . | . . . . Non-combat . | . . . . Combat . | . . . . Robot Hacks Applied . | . . . . Relay Couplers Released . | . . . . Fabnet Peak Effective % . | . . . . Robots Rewired . | . . . . Allies Hacked . | . . . . Hacks Repelled . | . . . . Allies | -11 -10 -10 -10 -------- Run | Yrd Mat Min Sub Total Allies . | . . . . Largest Group . | . . . . Highest-Rated Group . | . . . . Highest-Rated Ally . | . . . . Total Orders . | . . . . Ally Attacks . | . . . . Total Damage . | . . . . Kills . | . . . . Allies Corrupted . | . . . . Allies Melted . | . . . . Intel | -11 -10 -10 -10 ------- Run | Yrd Mat Min Sub Active Infowar (turns) 529 | 22 102 257 148 Optics 5 | . . . 5 Seismic 524 | 22 102 257 143 Robot Analysis Total . | . . . . Derelict Logs Recovered 1 | . . . 1 Drone Launches . | . . . . Drone Recoveries . | . . . . Exploration | -11 -10 -10 -10 ------------- Run | Yrd Mat Min Sub Turns Passed 3953 | 130 102 257 3464 Spaces Moved 2041 | 92 61 128 1760 Core 25 | 24 . . 1 Treads 569 | . 16 128 425 Legs 1447 | 68 45 . 1334 Wheels . | . . . . Hover . | . . . . Flight . | . . . . Fastest Speed 50 | 50 120 160 160 Average Speed 176 | 101 130 160 182 Slowest Speed 250 | 120 160 160 250 Overloaded Moves . | . . . . Propulsion Burnouts . | . . . . Robots Hopped . | . . . . Potential Cave-ins . | . . . . Cave-ins Triggered . | . . . . Exploration Rate (%) 34 | 4 16 31 86 Regions Visited 3 Branch Regions 2 Pre-discovered Areas 1 | . . . 1 Known Exits Taken . | . . . . Unknown Exits Taken 3 | 1 1 1 . Scrap Searched 4 | . . 1 3 Spaces Dug . | . . . . Terrain Destroyed 1 | 1 . . . Melee . | . . . . Projectile . | . . . . AOE 1 | 1 . . . Terrain Rammed . | . . . . Walls Destroyed . | . . . . Machines Disabled . | . . . . Actions | -11 -10 -10 -10 --------- Run | Yrd Mat Min Sub Total 2249 | 113 73 179 1884 Wait 61 | . 1 50 10 Move 2038 | 91 60 127 1760 Hop . | . . . . Pick Up 26 | 9 4 . 13 Fast Attach 4 | 2 . . 2 Attach 10 | 4 1 . 5 Detach . | . . . . Swap 8 | . 2 2 4 Drop 10 | . . . 10 Fire 92 | 7 5 . 80 Melee . | . . . . Ram . | . . . . Kick . | . . . . Crush . | . . . . Escape Stasis . | . . . . Rewire . | . . . . Trap . | . . . . Miscellaneous . | . . . . Route ------- -11/Scrapyard -10/Materials -10/Mines (discovered 2 exits: [*Mat] / *Sub) -10/Subcaves (discovered 3 exits: [*Mat x2] / [*Rec]) History --------- Turn | Location | Event 7 | -11/Scrapyard | Discovered new exit (range 15) 131 | -11/Scrapyard | Entered Materials 154 | -10/Materials | Discovered new exit (range 16) 233 | -10/Materials | Entered Mines 244 | -10/Mines | Met a Derelict bent on vengeance 313 | -10/Mines | Build established: Mutant 439 | -10/Mines | Discovered new exit (range 8) 481 | -10/Mines | Discovered new exit (range 6) 490 | -10/Mines | Entered Subcaves 531 | -10/Subcaves | Shifting Twisted Machinery released Sub. Machine Gun 660 | -10/Subcaves | Core integrity fell below 50% 1009 | -10/Subcaves | Learned location of Zion (-6) 1009 | -10/Subcaves | Met a Zionite searching for "candidates" 1481 | -10/Subcaves | Visited Clippyterm 1487 | -10/Subcaves | Learned Factory fabricator intel 1678 | -10/Subcaves | Learned Materials emergency access door positions 1726 | -10/Subcaves | A swath of the cavern ceiling suddenly collapsed 1988 | -10/Subcaves | Discovered new exit (range 10) 2136 | -10/Subcaves | Disturbed a concealed Subdweller 2142 | -10/Subcaves | Core integrity fell below 20% 2247 | -10/Subcaves | Build established: Scavenger-Mutant 3043 | -10/Subcaves | Shifting Twisted Machinery released Battle Rifle 3095 | -10/Subcaves | Discovered new exit (range 8) 3208 | -10/Subcaves | Shifting Twisted Machinery released Sub. Laser 3601 | -10/Subcaves | Discovered new exit (range 10) 3690 | -10/Subcaves | Build established: Mutant 3954 | -10/Subcaves | Destroyed by 3V-RD9(R) with Subdweller Laser Last Messages --------------- number one! Although mostly just a persistent nuisance in their natural Subcaves environment where a certain balance has been achieved, there is a high probability that sudden introduction into previously unexposed areas could cause more extreme side effects. Take all precautions to prevent this from happening. >>Release Inventory Accessing inventory controls... Collection purity confirmed 100%... Ejecting SUBCON Basin... Delivery behind schedule, handle with care! 03844_ QDIEEH,BVZE2<